fUST/lending_fUST_20250423
["ID","MTS","AMOUNT","RATE_DAILY","PERIOD"]
[358728196,1745404251226,-503.67644819,0.00020198,2]
[358728197,1745404251236,-484.44793066,0.00020198,2]
[358728198,1745404251244,-500.0,0.00020198,2]
[358728199,1745404251253,-290.45531093,0.00020198,2]
[358728200,1745404251263,-500.0,0.00020198,2]
[358728201,1745404251272,-500.0,0.00020198,2]
[358728202,1745404251282,-500.0,0.00020198,2]
[358728203,1745404251291,-597.29,0.00020199,2]
[358728204,1745404251301,-500.0,0.00020199,2]
[358728205,1745404251312,-2261.04,0.00020199,2]
[358728206,1745404251321,-2261.04,0.00020199,2]
[358728207,1745404251330,-1965.45,0.00020199,2]
[358728208,1745404251340,-1965.45,0.00020199,2]
[358728209,1745404251496,-2261.04,0.000202,2]
[358728210,1745404251507,-2261.04,0.000202,2]
[358728211,1745404251516,-2261.04,0.000202,2]
[358728212,1745404251525,-2261.04,0.000202,2]
[358728213,1745404251535,-2261.18209215,0.000202,2]
[358728214,1745404251544,-1131.9,0.000202,2]
[358728215,1745404251553,-500.0,0.000202,2]
[358728216,1745404251564,-500.0,0.000202,2]
[358728217,1745404251573,-500.0,0.000202,2]
[358728218,1745404251583,-500.0,0.000202,2]
[358728219,1745404251592,-435.37,0.000202,2]
[358728220,1745404251601,-500.0,0.000202,2]
[358728221,1745404251610,-500.0,0.000202,2]
[358728222,1745404251619,-447.15,0.000202,2]
[358728223,1745404251628,-500.0,0.000202,2]
[358728224,1745404251638,-500.0,0.000202,2]
[358728225,1745404251648,-525.22,0.000202,2]
[358728226,1745404251657,-1965.45,0.000202,2]
[358728227,1745404251666,-1965.45,0.000202,2]
[358728228,1745404251676,-1965.45,0.000202,2]
[358728229,1745404251686,-1965.45,0.000202,2]
[358728230,1745404251695,-1965.56332869,0.000202,2]
[358728231,1745404251704,-500.0,0.000202,2]
[358728232,1745404251713,-500.0,0.000202,2]
[358728233,1745404251722,-201.55868888,0.000202,2]
[358728234,1745404251731,-500.0,0.000202,2]
[358728235,1745404251740,-795.76,0.000202,2]
[358728236,1745404251749,-956.21,0.000202,2]
[358728237,1745404251759,-500.0,0.000202,2]
[358728238,1745404251768,-500.0,0.000202,2]
[358728239,1745404251778,-720.95,0.000202,2]
[358728240,1745404251787,-506.74475939,0.000202,2]
[358728241,1745404251797,-505.49541606,0.000202,2]
[358728242,1745404251810,-500.0,0.000202,2]
[358728243,1745404251822,-720.95,0.00020204,2]
[358728244,1745404251832,-500.0,0.00020204,2]
[358728245,1745404251842,-200.57801707,0.00020205,2]
[358728246,1745404251852,-500.0,0.00020205,2]
[358728247,1745404251862,-500.0,0.00020205,2]
[358728248,1745404251872,-505.91150199,0.00020205,2]
[358728249,1745404251883,-628.03,0.00020205,2]
[358728250,1745404251893,-606.90537403,0.00020205,2]
[358728251,1745404251903,-505.23202578,0.00020205,2]
[358728252,1745404251913,-500.0,0.00020205,2]
[358728253,1745404251923,-500.0,0.00020205,2]
[358728254,1745404251933,-500.0,0.00020205,2]
[358728255,1745404251943,-504.13477604,0.00020205,2]
[358728256,1745404251952,-207.91141991,0.00020205,2]
[358728257,1745404251961,-500.0,0.00020205,2]
[358728258,1745404251970,-420.17429845,0.00020205,2]
[358728259,1745404251979,-500.0,0.00020205,2]
[358728260,1745404251989,-500.0,0.00020205,2]
[358728261,1745404251998,-500.0,0.00020205,2]
[358728262,1745404252007,-564.51582589,0.00020205,2]
[358728263,1745404252017,-500.0,0.00020205,2]
[358728264,1745404252026,-500.0,0.00020205,2]
[358728265,1745404252035,-500.0,0.00020205,2]
[358728266,1745404252044,-500.0,0.00020205,2]
[358728267,1745404252053,-500.0,0.00020205,2]
[358728268,1745404252064,-500.0,0.00020205,2]
[358728269,1745404252073,-500.0,0.00020205,2]
[358728270,1745404252082,-165.59138456,0.00020205,2]
[358728271,1745404252092,-504.68518985,0.00020205,2]
[358728272,1745404252101,-507.64782757,0.00020205,2]
[358728273,1745404252110,-500.0,0.00020205,2]
[358728274,1745404252119,-505.14580465,0.00020205,2]
[358728275,1745404252128,-500.0,0.00020205,2]
[358728276,1745404252137,-500.0,0.00020205,2]
[358728277,1745404252147,-500.0,0.00020205,2]
[358728278,1745404252156,-500.0,0.00020205,2]
[358728279,1745404252165,-500.0,0.00020205,2]
[358728280,1745404252176,-500.0,0.00020205,2]
[358728281,1745404252186,-500.0,0.00020205,2]
[358728282,1745404252195,-500.0,0.00020205,2]
[358728283,1745404252205,-355.97810591,0.00020205,2]
[358728284,1745404252214,-500.0,0.00020205,2]
[358728285,1745404252224,-500.0,0.00020205,2]
[358728286,1745404252234,-500.0,0.00020205,2]
[358728287,1745404252244,-630.38658812,0.00020238,2]
[358728288,1745404252254,-330.38208805,0.0002025,2]
[358728289,1745404252265,-500.0,0.00020273,2]
[358728290,1745404252276,-151.0,0.000204,4]
[358728291,1745404252287,-151.0,0.000204,3]
[358728292,1745404252298,-151.0,0.0002046,2]
[358728293,1745404252309,-151.0,0.0002046,2]
[358728294,1745404252319,-500.0,0.00020465,2]
[358728295,1745404252328,-500.0,0.00020465,2]
[358728296,1745404252338,-500.0,0.00020465,2]
[358728297,1745404252347,-648.29,0.00020465,2]
[358728298,1745404252356,-506.47350981,0.00020465,2]
[358728299,1745404252366,-648.84402524,0.00020465,2]
[358728300,1745404252375,-500.0,0.00020465,2]
[358728301,1745404252384,-500.0,0.00020465,2]
[358728302,1745404252394,-338.86741093,0.00020465,2]
[358728303,1745404252403,-213.69,0.00020466,2]
[358728304,1745404252413,-500.87,0.00020466,2]
[358728305,1745404252426,-500.0,0.00020466,2]
[358728306,1745404252435,-922.11,0.00020466,2]
[358728307,1745404252444,-1826.39,0.00020466,2]
[358728308,1745404252454,-500.0,0.00020466,2]
[358728309,1745404252463,-500.0,0.00020466,2]
[358728310,1745404252472,-7833.37,0.00020466,2]
[358728311,1745404252481,-3314.96,0.00020466,2]
[358728312,1745404252490,-1346.69,0.00020466,2]
[358728313,1745404252501,-500.0,0.00020466,2]
[358728314,1745404252510,-555.13229001,0.00020466,2]
[358728315,1745404252520,-965.63,0.00020466,2]
[358728316,1745404252529,-500.0,0.00020466,2]
[358728317,1745404252539,-500.0,0.00020466,2]
[358728318,1745404252549,-500.0,0.00020466,2]
[358728319,1745404252558,-500.0,0.00020466,2]
[358728320,1745404252568,-500.0,0.00020466,2]
[358728321,1745404252577,-538.66,0.00020466,2]
[358728322,1745404252588,-500.0,0.00020466,2]
[358728323,1745404252598,-500.0,0.00020467,2]
[358728324,1745404252607,-500.0,0.00020467,2]
[358728325,1745404252617,-686.58,0.00020467,2]
[358728326,1745404252626,-1103.57,0.00020467,2]
[358728327,1745404252636,-500.0,0.00020467,2]
[358728328,1745404252645,-500.0,0.00020467,2]
[358728329,1745404252655,-1141.6,0.00020467,2]
[358728330,1745404252666,-500.0,0.00020467,2]
[358728331,1745404252676,-500.0,0.00020467,2]
[358728332,1745404252685,-500.0,0.00020467,2]
[358728333,1745404252696,-500.0,0.00020467,2]
[358728334,1745404252705,-500.0,0.00020467,2]
[358728335,1745404252715,-500.0,0.00020467,2]
[358728336,1745404252726,-500.0,0.00020467,2]
[358728337,1745404252735,-500.0,0.00020467,2]
[358728338,1745404252744,-500.0,0.00020467,2]
[358728339,1745404252753,-117.3116453,0.00020467,2]
[358728340,1745404252985,-500.0,0.00019917,2]
[358728341,1745404252995,-500.0,0.00020191,2]
[358728342,1745404253004,-522.6283547,0.00020467,2]
[358728343,1745404253013,-500.0,0.00020467,2]
[358728344,1745404253022,-527.8,0.00020467,2]
[358728345,1745404253031,-500.0,0.00020467,2]
[358728346,1745404253040,-500.0,0.00020468,2]
[358728347,1745404253050,-559.32128182,0.00020468,2]
[358728348,1745404253059,-500.0,0.00020468,2]
[358728349,1745404253068,-3403.98,0.00020468,2]
[358728350,1745404253077,-500.0,0.00020468,2]
[358728351,1745404253087,-500.0,0.00020468,2]
[358728352,1745404253097,-500.0,0.00020468,2]
[358728353,1745404253106,-885.27,0.00020468,2]
[358728354,1745404253117,-500.0,0.00020468,2]
[358728355,1745404253127,-2206.55,0.00020468,2]
[358728356,1745404253136,-998.75,0.00020468,2]
[358728357,1745404253146,-388.41,0.00020471,2]
[358728358,1745404253156,-500.0,0.00020471,2]
[358728359,1745404253167,-500.0,0.00020471,2]
[358728360,1745404253176,-500.0,0.00020471,2]
[358728361,1745404253186,-500.0,0.00020471,2]
[358728362,1745404253195,-500.0,0.00020471,2]
[358728363,1745404253204,-500.0,0.00020471,2]
[358728364,1745404253213,-500.0,0.00020471,2]
[358728365,1745404253223,-627.17,0.00020471,2]
[358728366,1745404253232,-500.0,0.00020471,2]
[358728367,1745404253241,-500.0,0.00020471,2]
[358728368,1745404253251,-500.0,0.00020471,2]
[358728369,1745404253260,-500.0,0.00020471,2]
[358728370,1745404253269,-500.0,0.00020471,2]
[358728371,1745404253279,-500.0,0.00020471,2]
[358728372,1745404253288,-500.0,0.00020471,2]
[358728373,1745404253297,-500.0,0.00020471,2]
[358728374,1745404253307,-500.0,0.00020471,2]
[358728375,1745404253317,-500.0,0.00020471,2]
[358728376,1745404253326,-617.65,0.00020471,2]
[358728377,1745404253336,-500.0,0.00020471,2]
[358728378,1745404253345,-500.0,0.00020471,2]
[358728379,1745404253354,-500.0,0.00020471,2]
[358728380,1745404253364,-500.0,0.00020471,2]
[358728381,1745404253373,-527.02,0.00020471,2]
[358728382,1745404253383,-500.0,0.00020471,2]
[358728383,1745404253392,-500.0,0.00020471,2]
[358728384,1745404253401,-500.0,0.00020471,2]
[358728385,1745404253410,-500.0,0.00020471,2]
[358728386,1745404253422,-500.0,0.00020471,2]
[358728387,1745404253431,-500.0,0.00020471,2]
[358728388,1745404253441,-198.93,0.00020471,2]
[358728389,1745404253451,-500.0,0.00020471,2]
[358728390,1745404253460,-500.0,0.00020471,2]
[358728391,1745404253470,-500.0,0.00020471,2]
[358728392,1745404253479,-500.0,0.00020471,2]
[358728393,1745404253488,-539.62,0.00020471,2]
[358728394,1745404253497,-500.0,0.00020471,2]
[358728395,1745404253507,-500.0,0.00020471,2]
[358728397,1745404253517,-500.0,0.00020471,2]
[358728398,1745404253527,-500.0,0.00020471,2]
[358728399,1745404253536,-500.0,0.00020471,2]
[358728400,1745404253546,-500.0,0.00020471,2]
[358728401,1745404253555,-500.0,0.00020471,2]
[358728402,1745404253565,-500.0,0.00020471,2]
[358728403,1745404253574,-655.03,0.00020471,2]
[358728404,1745404253584,-199.98892999,0.00020471,2]
[358728405,1745404253594,-500.0,0.00020471,2]
[358728406,1745404253603,-169.21,0.00020471,2]
[358728407,1745404253613,-500.0,0.00020471,2]
[358728408,1745404253622,-500.0,0.00020471,2]
[358728409,1745404253632,-481.77,0.00020471,2]
[358728410,1745404253642,-500.0,0.00020471,2]
[358728411,1745404253651,-500.0,0.00020471,2]
[358728412,1745404253660,-500.0,0.00020471,2]
[358728413,1745404253670,-500.0,0.00020471,2]
[358728414,1745404253679,-500.0,0.00020471,2]
[358728415,1745404253689,-500.0,0.00020471,2]
[358728416,1745404253698,-562.72422998,0.00020471,2]
[358728417,1745404253708,-500.0,0.00020471,2]
[358728418,1745404253717,-1087.51,0.00020471,2]
[358728419,1745404253727,-500.0,0.00020471,2]
[358728420,1745404253737,-500.0,0.00020471,2]
[358728421,1745404253746,-500.0,0.00020471,2]
[358728422,1745404253756,-500.0,0.00020471,2]
[358728423,1745404253765,-500.0,0.00020471,2]
[358728424,1745404253774,-500.0,0.00020471,2]
[358728425,1745404253783,-500.0,0.00020471,2]
[358728426,1745404253793,-500.0,0.00020471,2]
[358728427,1745404253803,-526.29,0.00020471,2]
[358728428,1745404253813,-314.4710511,0.00020471,2]
[358728429,1745404253822,-500.0,0.00020471,2]
[358728430,1745404253832,-198.0,0.00020472,2]
[358728431,1745404253842,-577.15899285,0.00020472,2]
[358728432,1745404253852,-500.0,0.00020472,2]
[358728433,1745404253862,-500.0,0.00020472,2]
[358728434,1745404253871,-283.25,0.00020472,2]
[358728435,1745404253883,-500.0,0.00020472,2]
[358728436,1745404253893,-329.21,0.00020472,2]
[358728437,1745404253903,-280.21,0.00020472,2]
[358728438,1745404253912,-384.67,0.00020472,2]
[358728439,1745404253921,-500.0,0.00020472,2]
[358728440,1745404253931,-500.0,0.00020472,2]
[358728441,1745404253941,-206.88,0.00020472,2]
[358728442,1745404253951,-203.46,0.00020472,2]
[358728443,1745404253960,-539.96,0.00020472,2]
[358728444,1745404253969,-420.86,0.00020472,2]
[358728445,1745404253979,-500.0,0.00020472,2]
[358728446,1745404253989,-500.0,0.00020472,2]
[358728447,1745404253998,-583.41,0.00020472,2]
[358728448,1745404254008,-500.0,0.00020472,2]
[358728449,1745404254017,-500.0,0.00020472,2]
[358728450,1745404254027,-500.0,0.00020472,2]
[358728451,1745404254036,-500.0,0.00020472,2]
[358728452,1745404254046,-500.0,0.00020472,2]
[358728453,1745404254055,-500.0,0.00020472,2]
[358728454,1745404254219,-500.0,0.00020472,2]
[358728455,1745404254231,-505.29,0.00020472,2]
[358728456,1745404254241,-527.34633834,0.00020472,2]
[358728457,1745404254250,-500.0,0.00020472,2]
[358728458,1745404254260,-518.8369307,0.00020472,2]
[358728459,1745404254271,-624.76,0.00020472,2]
[358728460,1745404254283,-566.86,0.00020472,2]
[358728461,1745404254292,-500.0,0.00020472,2]
[358728462,1745404254302,-500.0,0.00020472,2]
[358728463,1745404254311,-557.02478874,0.00020472,2]
[358728464,1745404254321,-500.0,0.00020472,2]
[358728465,1745404254330,-517.02111704,0.00020472,2]
[358728466,1745404254339,-500.0,0.00020472,2]
[358728467,1745404254349,-589.6,0.00020472,2]
[358728468,1745404254358,-193.67,0.00020472,2]
[358728469,1745404254368,-500.0,0.00020472,2]
[358728470,1745404254377,-629.41,0.00020472,2]
[358728471,1745404254386,-604.82193955,0.00020472,2]
[358728472,1745404254395,-500.0,0.00020472,2]
[358728473,1745404254405,-500.0,0.00020472,2]
[358728474,1745404254414,-500.0,0.00020472,2]
[358728475,1745404254427,-550.35,0.00020472,2]
[358728476,1745404254436,-207.66,0.00020472,2]
[358728477,1745404254445,-500.0,0.00020472,2]
[358728478,1745404254454,-500.0,0.00020472,2]
[358728479,1745404254464,-500.0,0.00020472,2]
[358728480,1745404254474,-461.31,0.00020472,2]
[358728481,1745404254483,-500.0,0.00020472,2]
[358728482,1745404254493,-500.0,0.00020472,2]
[358728483,1745404254503,-500.0,0.00020472,2]
[358728484,1745404254512,-500.0,0.00020472,2]
[358728485,1745404254522,-500.0,0.00020472,2]
[358728486,1745404254532,-478.54,0.00020472,2]
[358728487,1745404254541,-156.96,0.00020472,2]
[358728488,1745404254551,-469.05,0.00020472,2]
[358728489,1745404254560,-220.98884203,0.00020472,2]
[358728490,1745404254570,-548.76,0.00020472,2]
[358728491,1745404254579,-500.0,0.00020472,2]
[358728492,1745404254589,-383.65,0.00020472,2]
[358728493,1745404254599,-500.0,0.00020472,2]
[358728494,1745404254608,-500.0,0.00020472,2]
[358728495,1745404254617,-500.0,0.00020472,2]
[358728496,1745404254628,-500.0,0.00020472,2]
[358728497,1745404254638,-500.0,0.00020472,2]
[358728498,1745404254648,-500.0,0.00020472,2]
[358728499,1745404254658,-582.93,0.00020472,2]
[358728500,1745404254667,-500.0,0.00020472,2]
[358728501,1745404254676,-500.0,0.00020472,2]
[358728502,1745404254687,-500.0,0.00020472,2]
[358728503,1745404254697,-500.0,0.00020472,2]
[358728504,1745404254706,-419.37,0.00020472,2]
[358728505,1745404254715,-500.0,0.00020472,2]
[358728506,1745404254724,-436.09,0.00020472,2]
[358728507,1745404254734,-500.0,0.00020472,2]
[358728508,1745404254744,-446.9,0.00020472,2]
[358728509,1745404254753,-500.0,0.00020472,2]
[358728510,1745404254763,-564.09303456,0.00020472,2]
[358728511,1745404254772,-500.0,0.00020472,2]
[358728512,1745404254781,-500.0,0.00020472,2]
[358728513,1745404254790,-500.0,0.00020472,2]
[358728514,1745404254800,-500.0,0.00020472,2]
[358728515,1745404254810,-500.0,0.00020472,2]
[358728516,1745404254820,-500.0,0.00020472,2]
[358728517,1745404254829,-516.37,0.00020472,2]
[358728518,1745404254838,-500.0,0.00020472,2]
[358728519,1745404254848,-500.0,0.00020472,2]
[358728520,1745404254857,-500.0,0.00020472,2]
[358728521,1745404254867,-500.0,0.00020472,2]
[358728522,1745404254875,-500.0,0.00020473,2]
[358728523,1745404254885,-500.0,0.00020473,2]
[358728524,1745404254895,-500.0,0.00020473,2]
[358728525,1745404254904,-500.0,0.00020473,2]
[358728526,1745404254913,-500.0,0.00020473,2]
[358728527,1745404254923,-500.0,0.00020473,2]
[358728528,1745404254933,-500.0,0.00020473,2]
[358728529,1745404254943,-720.95,0.00020473,2]
[358728530,1745404254952,-283.52899941,0.00020473,2]
[358728531,1745404254966,-216.47100059,0.00020473,2]
[358728532,1745404254976,-1131.9,0.00020474,2]
[358728533,1745404254986,-500.0,0.00020474,2]
[358728534,1745404254996,-500.0,0.00020474,2]
[358728535,1745404255006,-630.3,0.00020474,2]
[358728536,1745404255015,-500.0,0.00020474,2]
[358728537,1745404255024,-500.0,0.00020474,2]
[358728538,1745404255034,-500.0,0.00020474,2]
[358728539,1745404255043,-500.0,0.00020474,2]
[358728540,1745404255052,-632.72,0.00020474,2]
[358728541,1745404255063,-525.22,0.00020474,2]
[358728542,1745404255073,-500.0,0.00020474,2]
[358728543,1745404255082,-500.0,0.00020474,2]
[358728544,1745404255092,-500.0,0.00020474,2]
[358728545,1745404255101,-795.76,0.00020474,2]
[358728546,1745404255111,-956.21,0.00020474,2]
[358728547,1745404255121,-500.0,0.00020474,2]
[358728548,1745404255131,-516.92861511,0.00020474,2]
[358728549,1745404255141,-720.95,0.00020478,2]
[358728550,1745404255151,-500.0,0.00020478,2]
[358728551,1745404255161,-622.29,0.00020479,2]
[358728552,1745404255172,-610.38,0.00020479,2]
[358728553,1745404255181,-500.0,0.00020479,2]
[358728554,1745404255190,-500.0,0.00020479,2]
[358728555,1745404255199,-559.32,0.00020479,2]
[358728556,1745404255208,-500.0,0.00020479,2]
[358728557,1745404255217,-500.0,0.00020479,2]
[358728558,1745404255226,-495.69,0.00020479,2]
[358728559,1745404255235,-208.36,0.00020479,2]
[358728560,1745404255244,-500.0,0.00020479,2]
[358728561,1745404255254,-425.32,0.00020479,2]
[358728562,1745404255263,-500.0,0.00020479,2]
[358728563,1745404255272,-302.33,0.00020479,2]
[358728564,1745404255282,-574.33,0.00020479,2]
[358728565,1745404255292,-500.0,0.00020479,2]
[358728566,1745404255302,-500.0,0.00020479,2]
[358728567,1745404255314,-500.0,0.00020479,2]
[358728568,1745404255324,-500.0,0.00020479,2]
[358728569,1745404255335,-500.0,0.00020479,2]
[358728570,1745404255344,-500.0,0.00020479,2]
[358728571,1745404255352,-500.0,0.00020479,2]
[358728572,1745404255362,-500.0,0.00020479,2]
[358728573,1745404255371,-224.25,0.00020479,2]
[358728574,1745404255380,-151.0,0.00020647,2]
[358728575,1745404255389,-519.84861206,0.00020672,2]
[358728576,1745404255398,-720.95,0.00020706,2]
[358728577,1745404255407,-218.72506945,0.00020706,2]
[358728578,1745404255417,-500.0,0.00020739,2]
[358728579,1745404255429,-500.0,0.00020739,2]
[358728580,1745404255439,-579.22,0.00020739,2]
[358728581,1745404255448,-500.87,0.0002074,2]
[358728582,1745404255457,-500.0,0.0002074,2]
[358728583,1745404255467,-922.11,0.0002074,2]
[358728584,1745404255476,-1826.39,0.0002074,2]
[358728585,1745404255485,-455.99,0.0002074,2]
[358728586,1745404255495,-500.0,0.0002074,2]
[358728587,1745404255505,-7833.37,0.0002074,2]
[358728588,1745404255515,-3314.96,0.0002074,2]
[358728589,1745404255524,-1346.69,0.0002074,2]
[358728590,1745404255533,-500.0,0.0002074,2]
[358728591,1745404255543,-965.63,0.0002074,2]
[358728592,1745404255552,-500.0,0.0002074,2]
[358728593,1745404255561,-500.0,0.0002074,2]
[358728594,1745404255572,-500.0,0.0002074,2]
[358728595,1745404255581,-500.0,0.0002074,2]
[358728596,1745404255591,-500.0,0.0002074,2]
[358728597,1745404255600,-538.66,0.0002074,2]
[358728598,1745404255609,-500.0,0.0002074,2]
[358728599,1745404255618,-504.4,0.00020741,2]
[358728600,1745404255627,-500.0,0.00020741,2]
[358728601,1745404255636,-686.58,0.00020741,2]
[358728602,1745404255645,-1103.57,0.00020741,2]
[358728603,1745404255654,-500.0,0.00020741,2]
[358728604,1745404255663,-500.0,0.00020741,2]
[358728605,1745404255672,-1141.6,0.00020741,2]
[358728606,1745404255681,-385.40087438,0.00020741,2]
[358728607,1745404255690,-500.0,0.00020741,2]
[358728608,1745404255699,-500.0,0.00020741,2]
[358728609,1745404255708,-595.51217767,0.00020741,2]
[358728610,1745404255718,-500.0,0.00020741,2]
[358728611,1745404255727,-500.0,0.00020741,2]
[358728612,1745404255736,-500.0,0.00020741,2]
[358728613,1745404255745,-495.52,0.00020741,2]
[358728614,1745404255754,-500.0,0.00020741,2]
[358728615,1745404255764,-500.0,0.00020741,2]
[358728616,1745404255773,-527.8,0.00020741,2]
[358728617,1745404255782,-500.0,0.00020741,2]
[358728618,1745404255791,-500.0,0.00020742,2]
[358728619,1745404255800,-500.0,0.00020742,2]
[358728620,1745404255810,-3403.98,0.00020742,2]
[358728621,1745404255820,-500.0,0.00020742,2]
[358728622,1745404255829,-500.0,0.00020742,2]
[358728623,1745404255839,-500.0,0.00020742,2]
[358728624,1745404255848,-885.27,0.00020742,2]
[358728625,1745404255857,-500.0,0.00020742,2]
[358728626,1745404255866,-2206.55,0.00020742,2]
[358728627,1745404255875,-998.75,0.00020742,2]
[358728628,1745404255884,-392.71,0.00020745,2]
[358728629,1745404255893,-497.48984958,0.00020745,2]
[358728630,1745404255902,-500.0,0.00020745,2]
[358728631,1745404255911,-594.87,0.00020745,2]
[358728632,1745404255921,-500.0,0.00020745,2]
[358728633,1745404255930,-500.0,0.00020745,2]
[358728634,1745404255939,-259.81770551,0.00020745,2]
[358728635,1745404255948,-500.0,0.00020745,2]
[358728636,1745404255958,-500.0,0.00020745,2]
[358728637,1745404255967,-500.0,0.00020745,2]
[358728638,1745404255976,-500.0,0.00020745,2]
[358728639,1745404255986,-155.74,0.00020745,2]
[358728640,1745404255995,-500.0,0.00020745,2]
[358728641,1745404256005,-500.0,0.00020745,2]
[358728642,1745404256014,-500.0,0.00020745,2]
[358728643,1745404256023,-500.0,0.00020745,2]
[358728644,1745404256033,-500.0,0.00020745,2]
[358728645,1745404256042,-617.65,0.00020745,2]
[358728646,1745404256052,-500.0,0.00020745,2]
[358728647,1745404256061,-500.0,0.00020745,2]
[358728648,1745404256072,-352.34,0.00020745,2]
[358728649,1745404256081,-500.0,0.00020745,2]
[358728650,1745404256090,-500.0,0.00020745,2]
[358728651,1745404256100,-500.0,0.00020745,2]
[358728652,1745404256110,-500.0,0.00020745,2]
[358728653,1745404256119,-344.11357917,0.00020745,2]
[358728654,1745404256128,-500.0,0.00020745,2]
[358728655,1745404256138,-500.0,0.00020745,2]
[358728656,1745404256147,-500.0,0.00020745,2]
[358728657,1745404256157,-500.0,0.00020745,2]
[358728658,1745404256166,-500.0,0.00020745,2]
[358728659,1745404256176,-500.0,0.00020745,2]
[358728660,1745404256185,-500.0,0.00020745,2]
[358728661,1745404256194,-500.0,0.00020745,2]
[358728662,1745404256204,-514.87,0.00020745,2]
[358728663,1745404256213,-324.97,0.00020745,2]
[358728664,1745404256223,-500.0,0.00020745,2]
[358728665,1745404256232,-500.0,0.00020745,2]
[358728666,1745404256241,-500.0,0.00020745,2]
[358728667,1745404256251,-500.0,0.00020745,2]
[358728668,1745404256260,-655.03,0.00020745,2]
[358728669,1745404256269,-500.0,0.00020745,2]
[358728670,1745404256279,-185.76,0.00020745,2]
[358728671,1745404256287,-500.0,0.00020745,2]
[358728672,1745404256297,-500.0,0.00020745,2]
[358728673,1745404256307,-500.0,0.00020745,2]
[358728674,1745404256316,-500.0,0.00020745,2]
[358728675,1745404256326,-378.91,0.00020745,2]
[358728676,1745404256335,-500.0,0.00020745,2]
[358728677,1745404256344,-500.0,0.00020745,2]
[358728678,1745404256352,-1087.51,0.00020745,2]
[358728679,1745404256362,-500.0,0.00020745,2]
[358728680,1745404256371,-500.0,0.00020745,2]
[358728681,1745404256380,-500.0,0.00020745,2]
[358728682,1745404256389,-500.0,0.00020745,2]
[358728683,1745404256399,-500.0,0.00020745,2]
[358728684,1745404256408,-500.0,0.00020745,2]
[358728685,1745404256419,-500.0,0.00020745,2]
[358728686,1745404256430,-500.0,0.00020745,2]
[358728687,1745404256440,-500.0,0.00020745,2]
[358728688,1745404256449,-500.0,0.00020746,2]
[358728689,1745404256459,-500.0,0.00020746,2]
[358728690,1745404256470,-500.0,0.00020746,2]
[358728691,1745404256481,-303.10841767,0.00020746,2]
[358728692,1745404256490,-151.27,0.00020746,2]
[358728693,1745404256500,-500.0,0.00020746,2]
[358728694,1745404256509,-641.13,0.00020746,2]
[358728695,1745404256520,-594.56393194,0.00020746,2]
[358728696,1745404256530,-500.0,0.00020746,2]